fUSD/lending_fUSD_20240121
["ID","MTS","AMOUNT","RATE_DAILY","PERIOD"]
[312388680,1705855833432,-157.36,0.00027059,2]
[312388681,1705855833442,-975.91,0.00027238,2]
[312388682,1705855833451,-631.75,0.00027397,7]
[312388683,1705855833461,-631.75,0.00027397,7]
[312388684,1705855833470,-631.75,0.00027397,7]
[312388685,1705855833480,-631.75,0.00027397,7]
[312388686,1705855833490,-631.75,0.00027397,7]
[312388687,1705855833499,-631.75,0.00027397,7]
[312388688,1705855833508,-631.75,0.00027397,7]
[312388689,1705855833518,-631.75,0.00027397,7]
[312388690,1705855833528,-631.75,0.00027397,7]
[312388691,1705855833538,-631.75,0.00027397,7]
[312388692,1705855833548,-631.75,0.00027397,7]
[312388693,1705855833558,-631.75,0.00027397,7]
[312388694,1705855833568,-631.75,0.00027397,7]
[312388695,1705855833577,-631.75,0.00027397,7]
[312388696,1705855833587,-631.75,0.00027397,7]
[312388697,1705855833597,-631.75,0.00027397,7]
[312388698,1705855833606,-631.75,0.00027397,7]
[312388699,1705855833616,-631.75,0.00027397,7]
[312388700,1705855833626,-631.75,0.00027397,7]
[312388701,1705855833636,-631.75,0.00027397,7]
[312388702,1705855833647,-631.75,0.00027397,7]
[312388703,1705855833657,-631.75,0.00027397,7]
[312388704,1705855833666,-631.75,0.00027397,7]
[312388705,1705855833676,-631.98759708,0.00027397,7]
[312388706,1705855833686,-1000.0,0.00027397,2]
[312388707,1705855833695,-157.36,0.00027944,2]
[312388708,1705855833705,-554.65212261,0.00028,2]
[312388709,1705855833715,-4454.479,0.00028229,2]
[312388710,1705855833724,-3523.714,0.00028229,2]
[312388711,1705855833734,-1688.542,0.00028229,2]
[312388712,1705855833744,-1862.162,0.00028229,2]
[312388713,1705855833753,-164.208,0.00028229,2]
[312388714,1705855833763,-1030.0,0.00028229,2]
[312388715,1705855833772,-207.78272895,0.00028373,2]
[312388716,1705855833781,-200.0,0.00028442,14]
[312388717,1705855833791,-559.36868981,0.00028476,2]
[312388718,1705855833801,-1448.05974613,0.00028543,4]
[312388719,1705855833811,-1000.0,0.00028767,2]
[312388720,1705855833820,-192.90231929,0.00028795,2]
[312388721,1705855833830,-155.0,0.00028795,2]
[312388722,1705855833840,-975.91,0.00028882,2]
[312388723,1705855833849,-29999.99,0.00029009,2]
[312388724,1705855833859,-16721.19,0.00029009,2]
[312388725,1705855833868,-1000.0,0.00029073,2]
[312388726,1705855833877,-256.81224917,0.000295,3]
[312388727,1705855833886,-165.16,0.0002957,2]
[312388728,1705855833896,-175.58250697,0.000298,2]
[312388729,1705855833905,-731.25712485,0.000298,2]
[312388730,1705855833915,-100000.0,0.0003,2]
[312388731,1705855833924,-307.48534238,0.0003,2]
[312388732,1705855833934,-2164.18588237,0.0003,4]
[312388733,1705855833944,-764.11347582,0.0003,4]
[312388734,1705855833953,-192.291184,0.0003,2]
[312388735,1705855833963,-155.0,0.0003,2]
[312388736,1705855833973,-150.0,0.0003,7]
[312388737,1705855833982,-450.0,0.0003002,3]
[312388738,1705855833992,-200.0,0.0003009,7]
[312388739,1705855834001,-1000.0,0.00030136,2]
[312388740,1705855834010,-152.04,0.00030137,2]
[312388741,1705855834020,-519.0,0.00030233,5]
[312388742,1705855834031,-1448.05974613,0.00030414,5]
[312388743,1705855834041,-975.91,0.00030525,2]
[312388744,1705855834051,-150.0,0.000308,2]
[312388745,1705855834062,-100000.0,0.00031,2]
[312388746,1705855834071,-176.39,0.00031,2]
[312388747,1705855834081,-150.0,0.00031,20]
[312388748,1705855834091,-500.0,0.00031034,2]
[312388749,1705855834101,-2475.29256209,0.00031036,4]
[312388750,1705855834110,-155.72,0.00031188,2]
[312388751,1705855834121,-155.72,0.00031236,2]
[312388752,1705855834131,-155.72,0.00031284,2]
[312388753,1705855834140,-318.525335,0.00031329,2]
[312388754,1705855834150,-155.8409457,0.00031329,4]
[312388755,1705855834161,-401.57543249,0.00031329,4]
[312388756,1705855834172,-2333.67061225,0.0003133,4]
[312388757,1705855834185,-36113.10189792,0.00031331,4]
[312388758,1705855834196,-155.72,0.00031332,2]
[312388759,1705855834208,-155.72,0.00031379,2]
[312388760,1705855834218,-155.72,0.00031427,2]
[312388761,1705855834230,-155.72,0.00031475,2]
[312388762,1705855834239,-7999.99,0.000315,14]
[312388763,1705855834250,-1000.0,0.000315,2]
[312388764,1705855834260,-1000.0,0.00031506,2]
[312388765,1705855834269,-155.72,0.00031523,2]
[312388766,1705855834278,-352.48,0.00031548,2]
[312388767,1705855834288,-155.72,0.00031571,2]
[312388768,1705855834298,-155.72,0.00031619,2]
[312388769,1705855834307,-155.72,0.00031667,2]
[312388770,1705855834317,-280.58151046,0.00031674,4]
[312388771,1705855834327,-2782.97946281,0.00031676,2]
[312388772,1705855834336,-180.19587329,0.0003171,4]
[312388773,1705855834346,-278.57815345,0.00031711,2]
[312388774,1705855834355,-155.72,0.00031715,2]
[312388775,1705855834365,-155.72,0.00031763,2]
[312388776,1705855834374,-100963.660446,0.000318,3]
[312388777,1705855834383,-155.72,0.00031811,2]
[312388778,1705855834395,-56090.92247,0.00031886,3]
[312388779,1705855834404,-5000.0,0.00031894,2]
[312388780,1705855834415,-183.33900826,0.00031894,2]
[312388781,1705855834429,-8559.5939,0.00031896,3]
[312388782,1705855834440,-2806.0813,0.00031896,2]
[312388783,1705855834450,-2862.497,0.00031896,2]
[312388784,1705855834459,-100000.0,0.00031896,2]
[312388785,1705855834469,-2000.0,0.00031896,4]
[312388786,1705855834481,-1183.49751356,0.00031896,3]
[312388787,1705855834491,-156.71283821,0.00031896,2]
[312388788,1705855834500,-320.80532956,0.00031896,2]
[312388789,1705855834510,-4975.83215402,0.00031896,2]
[312388790,1705855834519,-215.35384188,0.00031966,2]
[312388791,1705855834528,-1000.0,0.0003198,2]
[312388792,1705855834538,-190709.136398,0.00031984,3]
[312388793,1705855834548,-2945.7151429,0.00031993,4]
[312388794,1705855834557,-500.0,0.00031993,2]
[312388795,1705855834567,-231.67297759,0.00031994,4]
[312388796,1705855834576,-369.19666549,0.00031994,4]
[312388797,1705855834586,-302.89880783,0.00031994,4]
[312388798,1705855834595,-4487.93862485,0.00031994,4]
[312388799,1705855834605,-155.69206296,0.00031994,4]
[312388800,1705855834616,-157.40915313,0.00031994,4]
[312388801,1705855834625,-1914.12881296,0.00031994,4]
[312388802,1705855834635,-256.33155738,0.00031994,2]
[312388803,1705855834645,-264.77367341,0.00031994,4]
[312388804,1705855834657,-1851.18146433,0.00031994,4]
[312388805,1705855834668,-2144.43375818,0.00031994,4]
[312388806,1705855834678,-220.30306813,0.00031994,4]
[312388807,1705855834688,-198.7437607,0.00031994,4]
[312388808,1705855834697,-158.30695886,0.00031994,4]
[312388809,1705855834707,-18905.7828036,0.00031994,4]
[312388810,1705855834718,-302.12857932,0.00031994,4]
[312388811,1705855834727,-258.61319956,0.00031994,4]
[312388812,1705855834736,-155.49419983,0.00031994,4]
[312388813,1705855834747,-155.0,0.00031994,4]
[312388814,1705855834756,-252.21643827,0.00031994,4]
[312388815,1705855834765,-505913.30883143,0.00031994,2]
[312388816,1705855834774,-155.1313233,0.00031995,4]
[312388817,1705855834784,-193.8500035,0.00031995,4]
[312388818,1705855834794,-1069.61574888,0.00031996,4]
[312388819,1705855834805,-283998.87610324,0.00031996,2]
[312388820,1705855834867,-848.87826376,0.00031996,2]
[312388821,1705855834883,-1811.68039452,0.00031996,2]
[312388822,1705855835060,356.74,0.00019462,2]
[312388826,1705855837889,-529.64571731,0.00019602,2]
[312388827,1705855837899,-356.74,0.00021726,2]
[312388828,1705855837911,-356.74,0.0002399,2]
[312388829,1705855837920,-356.74,0.00026254,2]
[312388830,1705855837931,-356.74,0.00028517,2]
[312388831,1705855837941,-472.0,0.00030233,5]
[312388832,1705855837951,-356.74,0.00030781,2]
[312388833,1705855837961,-935.58481423,0.00031895,2]
[312388834,1705855837971,-364511.99988199,0.00031996,3]
[312388835,1705855837984,-354584.75924408,0.00031996,3]
[312388836,1705855838009,-999.30268128,0.00031996,3]
[312388837,1705855838021,-1108.21546658,0.00031996,3]
[312388838,1705855838033,-2087.17242903,0.00031996,3]
[312388839,1705855838046,-454.88234641,0.00031996,3]
[312388840,1705855838058,-266.29936235,0.00031996,3]
[312388847,1705855838148,-868.99879981,0.00031996,3]
[312388876,1705855838419,-410.415,0.00031996,3]
[312389311,1705855842463,-1250.0,0.00022,3]
[312389313,1705855842473,-551.8000008,0.00031996,3]
[312389315,1705855842484,-3529.4721077,0.00031996,3]
[312389319,1705855842500,-18761.41430294,0.00031996,3]
[312389322,1705855842512,-4082.2482,0.00031996,3]
[312389326,1705855842524,-377.63072068,0.00031996,3]
[312389329,1705855842535,-5792.15394008,0.00031996,3]
[312389333,1705855842547,-985.28859452,0.00031996,3]
[312389336,1705855842559,-2261.06744479,0.00031996,3]
[312389397,1705855842789,-1300.0,0.00024,3]
[312389400,1705855842799,-4065.93476277,0.00031996,3]
[312389405,1705855842810,-3772.03234507,0.00031996,3]
[312389408,1705855842826,-1405.81876783,0.00031996,3]
[312389415,1705855842847,-690.03922118,0.00031996,3]
[312389422,1705855842879,-423.30504953,0.00031996,3]
[312389425,1705855842890,-373.2497615,0.00031996,3]
[312389430,1705855842906,-2298.0,0.00031996,3]
[312389805,1705855845655,-414.01435,0.00025999,2]
[312389813,1705855845730,-500.0,0.00025999,2]
[312389826,1705855845853,-1103.89151492,0.00025999,2]
[312389828,1705855845863,-272.10702696,0.00025999,2]
[312389831,1705855845876,-545.71249608,0.00025999,2]
[312389872,1705855864050,202.0,0.00019426,2]
[312389873,1705855901313,31380.55253487,0.00036223,30]
[312389875,1705856063819,8439.97334427,0.00025,30]
[312389876,1705856184760,-2605.00002254,0.00019786,2]
[312389877,1705856184782,-1178.97298307,0.00019787,2]
[312389878,1705856184803,-1647.02699439,0.00019787,2]
[312389879,1705856318792,379.49,0.00017756,2]
[312389880,1705856344154,200.0,0.00019518,2]
[312389881,1705856364627,283.39303664,0.00019518,2]
[312389882,1705856367323,155.0,0.00019518,2]
[312389883,1705856368577,3231.77,0.00019439,2]
[312389884,1705856369777,155.0,0.00019518,2]
[312389885,1705856370805,6088.06824423,0.00019518,2]
[312389886,1705856370908,5194.95423977,0.00019518,2]
[312389887,1705856373995,292.32492895,0.00019518,2]
[312389888,1705856379179,487.82,0.00019439,2]
[312389889,1705856381326,235.79469252,0.00019518,2]
[312389890,1705856384935,5194.95423977,0.00019518,2]
[312389891,1705856385651,155.31998547,0.00019518,2]
[312389892,1705856387005,6076.95220223,0.00019518,2]
[312389893,1705856388628,413.43914993,0.00019518,2]
[312389894,1705856389825,292.32492895,0.00019518,2]
[312389895,1705856390725,2903.66792719,0.00019517,2]
[312389896,1705856407924,292.32492895,0.00019518,2]
[312389897,1705856408911,5194.95423977,0.00019518,2]
[312389898,1705856426049,442.08,0.00019372,2]
[312389899,1705856427854,214.77778986,0.00019517,2]
[312389900,1705856428914,3964.18892138,0.00019517,2]
[312389901,1705856431809,500.0,0.00019372,2]
[312389902,1705856443807,544.41541712,0.00019517,2]
[312389903,1705856452240,417.57973931,0.00019517,2]
[312389904,1705856470258,660.37,0.00019424,2]
[312389905,1705856477795,543.8078107,0.00019517,2]
[312389906,1705856508559,250.0,0.00019199,2]
[312389907,1705856515711,150.61828067,0.00019103,2]
[312389908,1705856548694,3066.08,0.00019199,2]
[312389909,1705856560621,159.81,0.0001937,2]
[312389910,1705856604630,4337.15,0.00019199,2]
[312389911,1705856622065,394.92,0.00019081,2]
[312389912,1705856622326,3191.26397536,0.00019005,2]
[312389913,1705856627077,157.8,0.00019267,2]
[312389914,1705856627317,157.8,0.00019326,2]
[312389915,1705856627536,157.8,0.00019385,2]
[312389916,1705856627833,157.8,0.00019444,2]
[312389917,1705856628012,157.8,0.00019503,2]
[312389919,1705856674901,170.64,0.00018834,2]
[312389920,1705856733092,328.31,0.00018834,2]
[312389921,1705856734066,23900.0,0.00018834,2]
[312389922,1705856745521,150.0,0.00018869,2]
[312389923,1705856794992,200.0,0.00018843,2]
[312389924,1705856796483,810.79,0.00018827,2]
[312389925,1705856812113,21628.28,0.00019178,2]
[312389926,1705856814753,5218.38418036,0.00019546,2]
[312389927,1705856816522,1853.57655761,0.00019546,2]
[312389928,1705856817996,500.0,0.00018861,2]
[312389929,1705856822262,155.0,0.00019546,2]
[312389930,1705856826083,524.29723509,0.00019546,2]
[312389931,1705856832384,2605.00002254,0.00019546,2]
[312389932,1705856835653,629.27985866,0.00019546,2]
[312389933,1705856838198,200.0,0.00018879,2]
[312389937,1705856846234,155.0,0.00019546,2]
[312389938,1705856851806,301.47434633,0.00019546,2]
[312389939,1705856856189,1071.38976877,0.00019546,2]
[312389940,1705856859469,155.0,0.00019546,2]
[312389941,1705856864236,395.41742636,0.00019546,2]
[312389942,1705856864925,622.40615561,0.00019546,2]
[312389943,1705856865152,679.66,0.00018913,2]
[312389944,1705856883287,620.10572963,0.00019005,2]
[312389945,1705856885663,1000.0,0.00018913,2]
[312389947,1705856923985,1335.53,0.00019065,2]
[312389948,1705856939789,1746.68,0.00019084,2]
[312389949,1705856994028,157.07,0.00018938,2]
[312389950,1705857030831,250.0,0.00018904,2]
[312389978,1705857031746,-867.65374985,0.00019549,2]
[312389979,1705857031756,-5413.64812056,0.0001955,2]
[312389980,1705857031804,-151838.32582044,0.0001955,2]
[312389981,1705857031819,-177122.953834,0.00019551,2]
[312389982,1705857031829,-157.8,0.00019562,2]
[312389983,1705857031839,-393.71012615,0.00019598,2]
[312389984,1705857031850,-150.85,0.000196,2]
[312389985,1705857031860,-157.8,0.00019621,2]
[312389986,1705857031870,-157.8,0.0001968,2]
[312389987,1705857031880,-153.69122035,0.00019699,2]
[312389988,1705857031890,-157.8,0.00019739,2]
[312389989,1705857031900,-165.56,0.00019759,2]
[312389990,1705857031910,-215.35384188,0.00019777,2]
[312389991,1705857031919,-220.13775132,0.00019787,2]
[312389992,1705857031929,-8525.55662925,0.00019787,2]
[312389993,1705857031940,-243.20763243,0.00019788,2]
[312389994,1705857031950,-150.85,0.00019796,2]
[312389995,1705857031960,-16772.65978305,0.00019796,2]
[312389996,1705857031970,-458.95359212,0.00019796,2]
[312389997,1705857031980,-2167.52559884,0.00019796,2]
[312389998,1705857031990,-369.19666549,0.00019796,2]
[312389999,1705857032000,-231.67297759,0.00019796,2]
[312390000,1705857032011,-155.69206296,0.00019796,2]
[312390001,1705857032021,-258.61319956,0.00019796,2]
[312390002,1705857032031,-1914.12881296,0.00019796,2]
[312390003,1705857032042,-157.40915313,0.00019796,2]
[312390004,1705857032052,-270.03425655,0.00019796,2]
[312390005,1705857032063,-1218.48457109,0.00019796,2]
[312390006,1705857032073,-699.98378464,0.00019796,5]
[312390007,1705857032082,-158.30695886,0.00019796,2]
[312390008,1705857032092,-2144.43375818,0.00019796,2]
[312390009,1705857032102,-2945.7151429,0.00019796,2]
[312390010,1705857032112,-198.7437607,0.00019796,2]
[312390011,1705857032122,-220.30306813,0.00019796,2]
[312390012,1705857032132,-1850.5397768,0.00019796,2]
[312390013,1705857032142,-264.38597346,0.00019796,2]
[312390014,1705857032155,-257.20683574,0.00019796,2]
[312390015,1705857032165,-244.02417481,0.00019796,2]
[312390016,1705857032175,-378.39368815,0.00019796,2]
[312390017,1705857032185,-253.12598674,0.00019796,2]
[312390018,1705857032196,-301.90759336,0.00019796,2]
[312390019,1705857032205,-285.64727706,0.00019796,2]
[312390020,1705857032215,-1068.83824203,0.00019796,2]
[312390021,1705857032225,-155.49419983,0.00019797,2]
[312390022,1705857032235,-193.8500035,0.00019797,2]
[312390023,1705857032245,-2005.29710002,0.00019797,2]
[312390024,1705857032255,-157.8,0.00019798,2]
[312390025,1705857032265,-455792.72384916,0.00019798,2]
[312390026,1705857032275,-251.14817734,0.00019802,2]
[312390027,1705857032285,-176.95889043,0.00019802,2]
[312390028,1705857032295,-336.7179586,0.00019802,2]
[312390029,1705857032305,-2637.57317873,0.00019802,2]
[312390030,1705857032315,-5442.70539136,0.00019802,2]
[312390031,1705857032325,-695.69995506,0.00019802,2]
[312390032,1705857032335,-525.31564843,0.00019802,2]
[312390033,1705857032346,-286.73899009,0.00019802,2]
[312390034,1705857032356,-1990.9964,0.00019802,2]
[312390035,1705857032367,-302.89880783,0.00019802,2]
[312390036,1705857032377,-155.1313233,0.00019802,2]
[312390037,1705857032387,-6954.97174587,0.00019804,2]
[312390038,1705857032398,-157.8,0.00019857,2]
[312390039,1705857032407,-157.8,0.00019916,2]
[312390040,1705857032417,-157.8,0.00019975,2]
[312390041,1705857032427,-150.85,0.00019992,2]
[312390042,1705857032438,-3964.39161946,0.0002,2]
[312390043,1705857032448,-247.24074097,0.0002,2]
[312390044,1705857032459,-155.0,0.0002,2]
[312390045,1705857032469,-157.8,0.00020034,2]
[312390046,1705857032482,-157.8,0.00020093,2]
[312390047,1705857032492,-157.8,0.00020153,2]
[312390048,1705857032503,-153.69122029,0.00020156,2]
[312390049,1705857032513,-157.8,0.00020212,2]
[312390050,1705857032522,-157.8,0.00020271,2]
[312390051,1705857032533,-2000.0,0.00020548,2]
[312390053,1705857032543,-153.69122029,0.00020614,2]
[312390055,1705857032553,-394.92,0.00020725,2]
[312390057,1705857032563,-155.16,0.00020787,2]
[312390059,1705857032573,-499.99,0.00020951,2]
[312390060,1705857032583,-1578.72,0.00020951,2]
[312390062,1705857032593,-150.99,0.00020951,2]
[312390064,1705857032603,-731.05509507,0.00021,2]
[312390066,1705857032613,-153.69122029,0.00021071,2]
[312390068,1705857032623,-1000.0,0.00021278,2]
[312390070,1705857032633,-1767.63,0.0002137,2]
[312390071,1705857032643,-153.69122029,0.00021528,2]
[312390073,1705857032653,-684.9,0.00021644,2]
[312390075,1705857032667,-166.92,0.00021645,2]
[312390077,1705857032677,-18905.7828036,0.000218,2]
[312390079,1705857032687,-155.0,0.00021848,2]
[312390081,1705857032698,-250.0,0.000219,2]
[312390083,1705857032709,-250.0,0.00021918,2]
[312390085,1705857032718,-200.0,0.00021918,2]
[312390087,1705857032730,-153.69122029,0.00021985,2]
[312390089,1705857032741,-365.78618045,0.00021999,2]
[312390091,1705857032751,-2780.01755274,0.00022,2]
[312390093,1705857032762,-207.78272895,0.00022,2]
[312390095,1705857032771,-352.66,0.00022,2]
[312390097,1705857032781,-617.92309023,0.00022,2]
[312390099,1705857032794,-257.08,0.00022,2]
[312390101,1705857032803,-156.16540912,0.00022078,2]
[312390102,1705857032813,-513.41,0.00022137,2]
[312390104,1705857032824,-2476.20957475,0.00022308,2]
[312390106,1705857032834,-752.0,0.00022346,2]
[312390108,1705857032844,-394.92,0.00022369,2]
[312390110,1705857032853,-153.69122029,0.00022443,2]
[312390112,1705857032863,-684.9,0.00022445,2]
[312390114,1705857032874,-2118.71474302,0.0002249,5]
[312390116,1705857032884,-5000.0,0.000227,2]
[312390118,1705857032894,-69.399561,0.00022768,2]
[312390120,1705857032908,-86.40363827,0.00022768,2]
[312390122,1705857032918,-500.0,0.00022799,2]
[312390124,1705857032928,-714.89636193,0.000228,2]
[312390126,1705857032940,-377.60486903,0.000228,2]
[312390150,1705857033184,-2123.00412,0.000228,2]
[312390152,1705857033196,-4324.98764311,0.000228,2]
[312390153,1705857033213,-2018.3,0.000228,2]
[312390154,1705857033226,-362.51710311,0.000228,2]
[312390155,1705857033237,-1499.24163203,0.000228,2]
[312390156,1705857033264,-494572.2520546,0.000228,2]
[312390157,1705857033273,-3194.65608534,0.000228,2]
[312390158,1705857033282,-3194.65608524,0.00022809,2]
[312390159,1705857033291,-3194.65608524,0.00022818,2]
[312390160,1705857033300,-3194.65608524,0.00022827,2]
[312390161,1705857033309,-3194.65608524,0.00022836,2]
[312390162,1705857033318,-3194.65608524,0.00022845,2]
[312390163,1705857033327,-3194.65608524,0.00022855,2]
[312390164,1705857033336,-3194.65608524,0.00022864,2]
[312390165,1705857033345,-3194.65608524,0.00022873,2]
[312390166,1705857033354,-3194.65608524,0.00022882,2]
[312390168,1705857033363,-3194.65608524,0.00022891,2]
[312390170,1705857033372,-1227.2250054,0.000229,2]
[312390172,1705857033381,-3194.65608524,0.000229,2]
[312390174,1705857033390,-153.69122029,0.000229,2]
[312390176,1705857033400,-151.51572855,0.000229,2]
[312390178,1705857033409,-219.45112688,0.000229,2]
[312390180,1705857033418,-219.4511268,0.000229,2]
[312390182,1705857033427,-219.4511268,0.000229,2]
[312390184,1705857033436,-219.4511268,0.000229,2]
[312390186,1705857033446,-219.4511268,0.000229,2]
[312390188,1705857033455,-219.4511268,0.000229,2]
[312390190,1705857033464,-219.4511268,0.000229,2]
[312390192,1705857033474,-219.4511268,0.000229,2]
[312390194,1705857033483,-219.4511268,0.000229,2]
[312390196,1705857033491,-219.4511268,0.000229,2]
[312390198,1705857033500,-219.4511268,0.000229,2]
[312390200,1705857033509,-219.4511268,0.000229,2]
[312390202,1705857033518,-219.4511268,0.000229,2]
[312390203,1705857033527,-219.4511268,0.000229,2]
[312390205,1705857033536,-219.4511268,0.000229,2]
[312390207,1705857033545,-219.4511268,0.000229,2]
[312390209,1705857033554,-219.4511268,0.000229,2]
[312390211,1705857033563,-219.4511268,0.000229,2]
[312390213,1705857033572,-219.4511268,0.000229,2]
[312390215,1705857033581,-219.4511268,0.000229,2]
[312390217,1705857033590,-2806.75444269,0.000229,2]
[312390219,1705857033600,-2180.46454626,0.000229,2]
[312390221,1705857033609,-1780.70129994,0.000229,6]
[312390223,1705857033618,-962.41598866,0.000229,2]
[312390225,1705857033628,-376.69449592,0.00022998,2]
[312390227,1705857033638,-445.00044957,0.00022998,2]
[312390229,1705857033647,-765.83945719,0.00022998,2]
[312390231,1705857033660,-264.4930233,0.00022998,2]
[312390234,1705857033669,-1812.46036172,0.00022998,2]
[312390236,1705857033678,-160.6463697,0.00022998,2]
[312390238,1705857033688,-211.67425798,0.00022998,2]
[312390240,1705857033699,-697.79476683,0.00022998,2]
[312390242,1705857033708,-155.21884418,0.00022998,2]
[312390244,1705857033717,-591041.85513128,0.00022999,3]
[312390246,1705857033729,-767.7142013,0.00022999,3]
[312390248,1705857033744,-394.49800215,0.00022999,3]
[312390251,1705857033757,-35499.49203879,0.00022999,3]
[312390304,1705857037791,-13005.12856162,0.00022999,3]
[312390310,1705857037854,-22421.00957323,0.00022999,3]
[312390312,1705857037865,-23376.43700282,0.00022999,3]
[312390314,1705857037876,-3199.999998,0.00022999,3]
[312390319,1705857037911,-12899.59531826,0.00022999,3]
[312390327,1705857037981,-47865.81800007,0.00022999,3]
[312390330,1705857038001,-1637599.51586746,0.00022999,3]
[312390332,1705857038010,-150.0,0.00022999,2]
[312390334,1705857038019,-150.0,0.00022999,2]
[312390336,1705857038028,-150.0,0.00022999,2]
[312390338,1705857038038,-150.0,0.00022999,2]
[312390340,1705857038047,-150.0,0.00022999,2]
[312390342,1705857038055,-150.0,0.00022999,2]
[312390344,1705857038065,-242.40075584,0.00022999,2]
[312390345,1705857038074,-200.80072244,0.00023,2]
[312390346,1705857038084,-3379313.13814049,0.00023,2]
[312390347,1705857038099,-367346.54469622,0.00023,2]
[312390348,1705857038114,-354584.75924408,0.00023,2]
[312390349,1705857038126,-1576.10650313,0.00023,2]
[312390350,1705857038144,-733.25967809,0.00023,2]
[312390351,1705857038161,-1468.02454202,0.00023,2]
[312390352,1705857038203,-2028.07605,0.00023,2]
[312390353,1705857038214,-402.12299413,0.00023,2]
[312390354,1705857038227,-484.67894162,0.00023,2]
[312390355,1705857038245,-605.937402,0.00023,2]
[312390615,1705857041112,-711.40030894,0.000229,2]
[312390616,1705857041121,-7417.22449105,0.00023,2]
[312390620,1705857041447,-0.24088576,0.00023,2]
[312390621,1705857041460,-464.3237844,0.00023,2]
[312390622,1705857041471,-526.4838228,0.00023,2]
[312390623,1705857041503,-2487.15021336,0.00023,2]
[312390624,1705857041515,-3057.67277318,0.00023,2]
[312390625,1705857041526,-488.51457009,0.00023,2]
[312390626,1705857041538,-265.43330548,0.00023,2]
[312390627,1705857041549,-21000.0,0.00023,2]
[312390628,1705857041578,-566.49957436,0.00023,2]
[312390629,1705857041615,-1222.07257581,0.00023,2]
[312390630,1705857041627,-1335.54313078,0.00023,2]
[312390631,1705857041647,-5698.3610168,0.00023,2]
[312390662,1705857042843,-934.27295095,0.00023,2]
[312390680,1705857042953,-390.88544432,0.00023,2]
[312390681,1705857042965,-952.24844312,0.00023,2]
[312390683,1705857042977,-9907.13016509,0.00023,2]
[312390685,1705857042989,-701435.89424378,0.00023,2]
[312390687,1705857043000,-456.0540736,0.00023,2]
[312390688,1705857043063,-4050.0,0.00023,2]
[312390689,1705857043075,-1315.49086919,0.00023,2]
[312390690,1705857043120,-5910.48219996,0.00023,2]
[312390692,1705857043131,-5651.5096202,0.00023,2]
[312390718,1705857045759,-343.57689566,0.00023,2]
[312390721,1705857045770,-1444.83402703,0.00023,2]
[312390724,1705857045782,-608.33683848,0.00023,2]
[312390734,1705857045818,-4185.93724059,0.00023,2]
[312390736,1705857045834,-732.66045911,0.00023,2]
[312390739,1705857045877,-687.27552852,0.00023,2]
[312390745,1705857045932,-325.4120935,0.00023,2]
[312390747,1705857045945,-5278.19345045,0.00023,2]
[312390750,1705857045958,-345.14447152,0.00023,2]
[312390753,1705857046000,-6018.51353196,0.00023,2]
[312390755,1705857046012,-524.215878,0.00023,2]
[312390758,1705857046023,-443.12746569,0.00023,2]
[312390760,1705857046034,-2551.23347179,0.00023,2]
[312390762,1705857046046,-731.53118823,0.00023,2]
[312390766,1705857046077,-257.60009668,0.00023,2]
[312390769,1705857046088,-779.67858498,0.00023,2]
[312390771,1705857046100,-400.57,0.00023,2]
[312390773,1705857046113,-572.85,0.00023,2]
[312390776,1705857046125,-949.65,0.00023,2]
[312390778,1705857046136,-1060.03201634,0.00023,2]
[312390780,1705857046151,-300.0,0.00023,2]
[312390910,1705857265240,155.0,0.00018896,2]
[312390911,1705857287227,155.0,0.00018896,2]
[312390912,1705857308305,155.0,0.00018896,2]
[312390913,1705857326187,155.0,0.00018896,2]